bitfinex/quotes_BTCUSD_20250324
["timestamp","ask_amount","ask_price","bid_price","bid_amount"]
[1742860371832,0.78522224,87356.0,87355.0,0.0003392]
[1742860372991,0.78222224,87356.0,87355.0,0.0003392]
[1742860373197,0.77922224,87356.0,87355.0,0.0003392]
[1742860373400,0.78322224,87356.0,87355.0,0.0003392]
[1742860374233,0.90247988,87356.0,87355.0,0.0003392]
[1742860394003,0.78822224,87356.0,87355.0,0.0003392]
[1742860394131,0.6259646,87356.0,87355.0,0.0003392]
[1742860399165,0.5495646,87356.0,87355.0,0.0003392]
[1742860404236,0.6314646,87356.0,87355.0,0.0003392]
[1742860406808,0.5495646,87356.0,87355.0,0.0003392]
[1742860407008,0.2495646,87356.0,87355.0,0.0003392]
[1742860407902,0.2445646,87356.0,87355.0,0.0003392]
[1742860408289,0.2485646,87356.0,87355.0,0.0003392]
[1742860409149,0.2445646,87356.0,87355.0,0.0003392]
[1742860409504,0.2475646,87356.0,87355.0,0.0003392]
[1742860413018,0.3235646,87356.0,87355.0,0.0003392]
[1742860413214,0.42046325,87356.0,87355.0,0.0003392]
[1742860413912,0.72046325,87356.0,87355.0,0.0003392]
[1742860414124,0.83472089,87356.0,87355.0,0.0003392]
[1742860418338,0.6235646,87356.0,87355.0,0.0003392]
[1742860418667,0.5475646,87356.0,87355.0,0.0003392]
[1742860422693,0.0071696,87356.0,87355.0,0.0003392]
[1742860422902,0.2475646,87356.0,87355.0,0.0003392]
[1742860423096,0.0071696,87356.0,87355.0,0.35499384]
[1742860423298,0.0071696,87356.0,87355.0,0.48850357]
[1742860423503,0.0001696,87372.0,87371.0,0.240353]
[1742860423716,0.0001696,87372.0,87371.0,1.57076906]
[1742860424126,0.0001696,87389.0,87387.0,0.240309]
[1742860424330,0.0001696,87389.0,87387.0,1.20110506]
[1742860424523,0.0001696,87415.0,87399.0,0.540276]
[1742860424777,0.0001696,87415.0,87414.0,0.240235]
[1742860425054,0.0001696,87415.0,87414.0,1.76029191]
[1742860425182,0.0001696,87423.0,87422.0,0.240213]
[1742860425387,0.002,87439.0,87428.0,0.55473685]
[1742860425588,0.002,87439.0,87438.0,0.540169]
[1742860425818,0.240041,87485.0,87475.0,0.011431]
[1742860426018,0.00041413,87482.0,87476.0,0.11654367]
[1742860426221,0.011431,87478.0,87477.0,0.67216]
[1742860426502,0.011432,87470.0,87468.0,0.54464]
[1742860426695,0.240081,87470.0,87469.0,0.24205764]
[1742860426910,0.011431,87480.0,87475.0,0.001]
[1742860427135,0.011431,87480.0,87476.0,0.11425764]
[1742860427136,0.011431,87477.0,87476.0,0.11425764]
[1742860427340,0.22903413,87482.0,87476.0,0.11425764]
[1742860427535,0.240061,87478.0,87476.0,0.11425764]
[1742860427796,0.011431,87477.0,87476.0,0.11425764]
[1742860428541,0.245061,87478.0,87476.0,0.11425764]
[1742860428542,0.005,87478.0,87476.0,0.11425764]
[1742860428744,0.005,87478.0,87468.0,0.54464]
[1742860429153,0.22864,87474.0,87468.0,0.54464]
[1742860429407,0.011432,87469.0,87468.0,0.54464]
[1742860429607,0.011433,87460.0,87453.0,0.12792]
[1742860429806,0.011433,87464.0,87450.0,0.228701]
[1742860430057,0.2401,87464.0,87454.0,0.12792]
[1742860430185,0.2401,87464.0,87451.0,0.228699]
[1742860430606,0.240103,87463.0,87455.0,0.228687]
[1742860430811,0.228674,87461.0,87455.0,0.228687]
[1742860431012,0.240107,87461.0,87455.0,0.228687]
[1742860431624,0.228681,87458.0,87454.0,0.12796]
[1742860431826,0.240113,87459.0,87455.0,0.12792]
[1742860432440,0.011433,87460.0,87456.0,0.228686]
[1742860433176,0.002,87459.0,87455.0,0.12792]
[1742860433332,0.011433,87460.0,87455.0,0.12792]
[1742860433518,0.24011,87460.0,87455.0,0.12792]
[1742860433719,0.24211,87460.0,87455.0,0.12792]
[1742860433921,0.24211,87460.0,87454.0,0.356529]
[1742860434366,0.002,87460.0,87454.0,0.356529]
[1742860434562,0.002,87458.0,87454.0,0.356529]
[1742860435271,0.002,87458.0,87456.0,0.228684]
[1742860436490,0.003,87458.0,87456.0,0.228684]
[1742860437659,0.001,87458.0,87456.0,0.228684]
[1742860438088,0.003,87458.0,87456.0,0.35437564]
[1742860438286,0.003,87458.0,87456.0,0.34294164]
[1742860439181,0.240086,87469.0,87464.0,0.228664]
[1742860439604,0.24511689,87468.0,87462.0,0.228669]
[1742860439814,0.228661,87466.0,87462.0,0.228669]
[1742860440035,0.228663,87465.0,87461.0,0.228672]
[1742860440300,0.228663,87465.0,87456.0,0.11525764]
[1742860440301,0.011433,87462.0,87457.0,0.228681]
[1742860440452,0.011434,87457.0,87446.0,0.228712]
[1742860440615,0.011434,87457.0,87452.0,0.228695]
[1742860440818,0.011434,87457.0,87456.0,0.001]
[1742860441022,0.240119,87457.0,87456.0,0.001]
[1742860441222,0.011434,87455.0,87448.0,0.228706]
[1742860441422,0.24515111,87457.0,87452.0,0.228695]
[1742860441676,0.00503417,87454.0,87452.0,0.228695]
[1742860441922,0.228705,87449.0,87446.0,0.001]
[1742860442102,0.228705,87449.0,87416.0,0.47211985]
[1742860442103,0.011435,87446.0,87435.0,0.22874]
[1742860442305,0.011435,87446.0,87432.0,0.228747]
[1742860442512,0.011435,87446.0,87445.0,0.67204]
[1742860442513,0.01643913,87446.0,87445.0,0.67204]
[1742860443395,0.01743913,87446.0,87445.0,0.67204]
[1742860444360,0.24715113,87446.0,87445.0,0.6723788]
[1742860445166,0.24615113,87446.0,87445.0,0.6723788]
[1742860446583,0.24715113,87446.0,87445.0,0.6723788]
[1742860447062,0.24615113,87446.0,87445.0,0.6723788]
[1742860447470,0.24715113,87446.0,87445.0,0.6723788]
[1742860449567,0.00700413,87446.0,87445.0,1.01535144]
[1742860449776,0.002,87446.0,87445.0,1.02678644]
[1742860451047,0.001,87446.0,87445.0,1.02678644]
[1742860451222,0.001,87446.0,87445.0,1.02778644]
[1742860451577,0.00041413,87449.0,87445.0,1.02778644]
[1742860451578,0.00041413,87449.0,87448.0,0.240142]
[1742860451811,0.00041413,87449.0,87448.0,0.35439964]
[1742860452249,0.00041413,87449.0,87448.0,0.48195964]
[1742860452664,0.00041413,87449.0,87448.0,0.24181764]
[1742860452885,0.00041413,87449.0,87448.0,0.47148464]
[1742860453090,0.00041413,87449.0,87448.0,0.24277764]
[1742860453400,0.00041413,87449.0,87448.0,0.47148464]
[1742860453948,0.00041413,87449.0,87448.0,0.24277764]
[1742860454561,0.00041413,87449.0,87448.0,0.47148464]
[1742860454912,0.00041413,87449.0,87448.0,0.48291964]
[1742860456775,0.00041413,87449.0,87448.0,0.48325844]
[1742860457328,0.22911813,87449.0,87448.0,0.24311644]
[1742860457673,0.00041413,87449.0,87448.0,0.24311644]
[1742860458267,0.22911813,87449.0,87448.0,0.24311644]
[1742860458447,0.00041413,87449.0,87448.0,0.24311644]
[1742860459269,0.24055313,87449.0,87448.0,0.24311644]
[1742860459715,0.24055313,87449.0,87448.0,0.24211644]
[1742860461524,0.24055313,87449.0,87448.0,0.24311644]
[1742860461726,0.24055313,87449.0,87448.0,0.24411644]
[1742860461949,0.24055313,87449.0,87448.0,0.24311644]
[1742860462487,0.24055313,87449.0,87448.0,0.24411644]
[1742860463188,0.24055313,87449.0,87448.0,0.11659644]
[1742860463334,0.24055313,87449.0,87448.0,0.24395644]
[1742860467099,0.22911813,87449.0,87448.0,0.24395644]
[1742860467706,0.00041413,87449.0,87448.0,0.47266344]
[1742860467960,0.00041413,87449.0,87448.0,0.24395644]
[1742860468163,0.22911813,87449.0,87448.0,0.24395644]
[1742860468362,0.00041413,87449.0,87448.0,0.47266344]
[1742860468616,0.00041413,87449.0,87448.0,0.48409844]
[1742860469602,0.00041413,87449.0,87448.0,0.47266344]
[1742860471195,0.00041413,87449.0,87448.0,0.48409844]
[1742860471536,0.00041413,87449.0,87448.0,1.21829771]
[1742860471759,0.00041413,87449.0,87448.0,1.25398809]
[1742860472560,0.00041413,87449.0,87448.0,1.27614263]
[1742860472779,0.00041413,87449.0,87448.0,1.28114263]
[1742860473136,0.00041413,87449.0,87448.0,1.28014263]
[1742860473438,0.00041413,87449.0,87448.0,1.27914263]
[1742860473845,0.00041413,87449.0,87448.0,1.28014263]
[1742860474615,0.00041413,87449.0,87448.0,1.28046263]
[1742860475323,0.00041413,87449.0,87448.0,1.28446263]
[1742860482263,0.00041413,87449.0,87448.0,1.24877225]
[1742860483331,1.3e-07,87449.0,87448.0,1.28942356]
[1742860488560,0.0001694,87484.0,87465.0,0.540095]
[1742860488715,0.00028785,87466.0,87465.0,0.78211264]
[1742860489114,0.00028785,87466.0,87465.0,0.79372852]
[1742860489922,0.00028785,87466.0,87465.0,1.34610533]
[1742860490085,0.00028785,87466.0,87465.0,1.03856852]
[1742860490300,0.00028785,87466.0,87465.0,1.03956852]
[1742860491242,0.00028785,87466.0,87465.0,0.91184852]
[1742860491416,0.00028785,87466.0,87465.0,1.03952852]
[1742860492907,0.00028785,87466.0,87465.0,0.91184852]
[1742860493106,0.00028785,87466.0,87465.0,1.03960852]
[1742860493289,0.00028785,87466.0,87465.0,1.45926694]
[1742860494261,0.00028785,87466.0,87465.0,1.46771225]
[1742860500173,0.00028785,87466.0,87465.0,1.7822531]
[1742860500174,8.5e-07,87466.0,87465.0,1.7822531]
[1742860500902,8.5e-07,87466.0,87465.0,1.81786606]
[1742860501158,8.5e-07,87466.0,87465.0,1.81586606]
[1742860501389,8.5e-07,87466.0,87465.0,1.81786606]
[1742860501731,8.5e-07,87466.0,87465.0,1.81586606]
[1742860501928,8.5e-07,87466.0,87465.0,1.81986606]
[1742860502554,0.00017045,87466.0,87465.0,1.81986606]
[1742860502711,0.00017045,87466.0,87465.0,1.82286606]
[1742860503256,4.5e-07,87466.0,87465.0,1.81986606]
[1742860503618,4.5e-07,87466.0,87465.0,1.82486606]
[1742860505372,4.5e-07,87466.0,87465.0,1.82454606]
[1742860510143,4.5e-07,87466.0,87465.0,1.92700172]
[1742860512591,4.5e-07,87466.0,87465.0,1.93200172]
[1742860513376,4.5e-07,87466.0,87465.0,1.82954606]
[1742860513707,4.5e-07,87466.0,87465.0,1.82054606]
[1742860513903,0.0001694,87484.0,87483.0,0.240045]
[1742860514103,0.0001694,87484.0,87483.0,0.90132106]
[1742860517934,0.04532401,87510.0,87509.0,1.03406435]
[1742860518135,0.04532401,87510.0,87509.0,1.02263735]
[1742860518343,0.04532401,87510.0,87509.0,1.01396464]
[1742860519362,0.04532401,87510.0,87509.0,1.02539164]
[1742860519761,1e-08,87510.0,87509.0,1.03408322]
[1742860519963,1e-08,87510.0,87509.0,1.33408322]
[1742860520322,1e-08,87510.0,87509.0,1.76828249]
[1742860520534,0.0133091,87537.0,87535.0,0.239904]
[1742860520733,1e-07,87537.0,87536.0,0.55444085]
[1742860520962,1e-07,87537.0,87536.0,1.07381605]
[1742860521160,4.142e-05,87537.0,87536.0,1.20185605]
[1742860521290,4.142e-05,87537.0,87536.0,1.21051846]
[1742860521515,4.142e-05,87537.0,87536.0,1.22505931]
[1742860521712,4.142e-05,87537.0,87536.0,1.23005931]
[1742860521911,4.142e-05,87537.0,87536.0,1.41075931]
[1742860522170,4.142e-05,87537.0,87536.0,1.34318738]
[1742860522310,0.0001694,87554.0,87553.0,0.3]
[1742860522510,0.00058258,87554.0,87553.0,1.20647605]
[1742860522938,0.28963358,87554.0,87553.0,0.65793764]
[1742860523352,0.28963358,87554.0,87553.0,0.78705764]
[1742860523729,0.29063358,87554.0,87553.0,0.65793764]
[1742860523928,0.239897,87537.0,87536.0,0.003]
[1742860524139,0.239906,87534.0,87533.0,0.5436]
[1742860524347,0.239906,87534.0,87533.0,0.78705764]
[1742860524978,0.239906,87534.0,87517.0,0.41965841]
[1742860524979,0.23995,87518.0,87517.0,0.41965841]
[1742860525148,0.36815,87518.0,87517.0,0.53391605]
[1742860525357,0.239972,87510.0,87509.0,0.5436]
[1742860525671,0.239972,87510.0,87509.0,0.78729764]
[1742860525870,0.239956,87516.0,87510.0,0.011427]
[1742860526041,0.239953,87517.0,87512.0,0.228539]
[1742860526252,0.239953,87517.0,87513.0,0.11425764]
[1742860526696,0.228531,87516.0,87513.0,0.11425764]
[1742860526854,0.011426,87514.0,87513.0,0.11425764]
[1742860527449,0.356724,87518.0,87513.0,0.24385764]
[1742860527694,0.1282,87518.0,87513.0,0.24385764]
[1742860528015,0.228527,87517.0,87513.0,0.24385764]
[1742860528222,0.139626,87518.0,87514.0,0.228532]
[1742860528396,0.139626,87518.0,87515.0,0.11425764]
[1742860528562,0.228527,87517.0,87515.0,0.11425764]
[1742860528763,0.239953,87517.0,87515.0,0.11425764]
[1742860529609,0.356727,87518.0,87515.0,0.11425764]
[1742860529806,0.1282,87518.0,87515.0,0.11425764]
[1742860530025,0.0492,87518.0,87516.0,0.358088]
[1742860530214,0.079,87525.0,87524.0,0.011425]
[1742860530581,0.079,87525.0,87524.0,0.34276564]
[1742860531179,0.0492,87528.0,87527.0,0.239925]
[1742860531353,0.307466,87541.0,87528.0,0.011424]
[1742860531553,0.228486,87533.0,87529.0,0.53391605]
[1742860531731,0.22849,87531.0,87530.0,0.12968]
[1742860531933,0.011424,87534.0,87530.0,0.47242964]
[1742860532134,0.011424,87535.0,87531.0,0.11425764]
[1742860532337,0.228476,87537.0,87533.0,0.228484]
[1742860532553,0.228476,87537.0,87534.0,0.11425764]
[1742860532748,0.2399,87536.0,87534.0,0.11425764]
[1742860533020,0.011424,87535.0,87534.0,0.11425764]
[1742860533959,0.011424,87535.0,87534.0,0.24381764]
[1742860534141,0.011424,87530.0,87529.0,0.41965841]
[1742860534341,0.228493,87530.0,87529.0,0.66347605]
[1742860535303,0.239914,87531.0,87529.0,0.66347605]
[1742860535618,0.239914,87531.0,87530.0,0.11425764]
[1742860536889,0.239914,87531.0,87530.0,0.24369764]
[1742860537597,0.22949,87531.0,87530.0,0.24369764]
[1742860537912,0.001,87531.0,87530.0,0.47219064]
[1742860538242,0.002,87531.0,87530.0,0.48361464]
[1742860539902,0.002,87531.0,87530.0,1.02717464]
[1742860540961,0.0492,87542.0,87540.0,0.228466]
[1742860541138,0.0492,87542.0,87540.0,0.34272364]
[1742860542106,0.07941318,87541.0,87540.0,0.34272364]
[1742860542310,0.08041318,87541.0,87540.0,0.34272364]
[1742860542563,0.00141318,87541.0,87540.0,0.34272364]
[1742860543091,0.00241318,87541.0,87540.0,0.34272364]
[1742860543822,0.00241318,87541.0,87540.0,0.35414664]
[1742860547905,1.8e-07,87541.0,87540.0,0.65414664]
[1742860548111,1.8e-07,87541.0,87540.0,0.66868749]
[1742860548490,1.8e-07,87541.0,87540.0,0.67722748]
[1742860548697,0.0001694,87550.0,87549.0,0.539865]
[1742860549026,0.0001694,87550.0,87549.0,0.78328264]
[1742860551038,0.0001694,87550.0,87549.0,0.65612264]
[1742860551236,0.0001694,87550.0,87549.0,0.47378064]
[1742860551564,0.0001694,87550.0,87549.0,0.47578064]
[1742860551757,0.0001694,87550.0,87549.0,0.47574064]
[1742860551758,0.0791694,87550.0,87549.0,0.47574064]
[1742860552052,0.08380906,87550.0,87549.0,0.47574064]
[1742860552415,0.0791694,87550.0,87549.0,0.47174064]
[1742860552855,0.0791694,87550.0,87549.0,0.47374064]
[1742860553051,0.0791694,87550.0,87549.0,0.34470064]
[1742860553319,0.0001694,87550.0,87549.0,0.47366064]
[1742860554222,0.0001694,87550.0,87549.0,0.48508264]
[1742860554431,0.0001694,87550.0,87549.0,0.47166064]
[1742860554631,0.0001694,87550.0,87549.0,0.34270064]
[1742860554837,0.00480906,87550.0,87549.0,0.47162064]
[1742860555029,0.0001694,87550.0,87549.0,0.48304264]
[1742860555820,0.0001694,87550.0,87549.0,0.47162064]
[1742860556575,0.00480906,87550.0,87549.0,0.47162064]
[1742860556765,0.0001694,87550.0,87549.0,0.24317764]
[1742860556963,0.0001694,87550.0,87549.0,0.78657764]
[1742860556964,0.00480906,87550.0,87549.0,0.78657764]
[1742860557163,0.2286094,87550.0,87549.0,0.11425764]
[1742860557303,0.06142534,87550.0,87549.0,0.1288]
[1742860557687,0.228445,87549.0,87545.0,0.771853]
[1742860557872,0.228449,87547.0,87546.0,0.24305764]
[1742860558074,0.318871,87547.0,87546.0,0.1288]
[1742860558277,0.32355041,87547.0,87546.0,0.1288]
[1742860560901,0.32355041,87547.0,87546.0,0.1298]
[1742860561101,0.32455041,87547.0,87546.0,0.1298]
[1742860561305,0.32455041,87547.0,87546.0,0.1288]
[1742860562052,0.00567941,87547.0,87546.0,0.34270864]
[1742860562255,0.001,87547.0,87546.0,0.48277064]
[1742860565189,0.0001694,87550.0,87549.0,0.228443]
[1742860565412,0.0001694,87550.0,87549.0,0.34270064]
[1742860566278,0.0001694,87550.0,87549.0,0.47154064]
[1742860566739,0.0001694,87550.0,87549.0,0.48296264]
[1742860566953,0.0001694,87550.0,87549.0,0.78296264]
[1742860567734,0.0001694,87550.0,87549.0,0.48296264]
[1742860571334,0.0001694,87550.0,87549.0,0.35412264]
[1742860571542,0.0001694,87550.0,87549.0,0.48276264]
[1742860571755,0.0001694,87550.0,87549.0,0.35412264]
[1742860571957,0.0001694,87550.0,87549.0,0.48276264]
[1742860572554,0.0001694,87550.0,87549.0,1.02612264]
[1742860572958,0.0001694,87550.0,87549.0,1.01470064]
[1742860573718,0.00491722,87550.0,87549.0,1.01470064]
[1742860573923,0.0001694,87550.0,87549.0,1.01470064]
[1742860574226,0.00491722,87550.0,87549.0,1.01470064]
[1742860574374,0.0001694,87550.0,87549.0,0.78625764]
[1742860574580,0.00491722,87550.0,87549.0,0.78613764]
[1742860574806,0.0001694,87550.0,87549.0,0.78613764]
[1742860575161,0.0001694,87550.0,87549.0,1.01458064]
[1742860575367,0.00491487,87550.0,87549.0,1.01458064]
[1742860575591,0.2892314,87550.0,87549.0,0.67184]
[1742860575790,0.29397629,87550.0,87549.0,0.67184]
[1742860577203,0.29497629,87550.0,87549.0,0.67184]
[1742860589522,0.00591429,87550.0,87549.0,1.02596264]
[1742860589928,0.0011694,87550.0,87549.0,1.02596264]
[1742860590360,0.0011694,87550.0,87549.0,1.03739741]
[1742860590723,0.0011694,87550.0,87549.0,1.02596264]
[1742860591592,0.0011694,87550.0,87549.0,1.01454064]
[1742860592962,0.2410314,87550.0,87549.0,0.78609764]
[1742860593169,0.0011694,87550.0,87549.0,0.88606064]
[1742860593324,0.0011694,87550.0,87549.0,1.02600264]
[1742860593528,0.0011694,87550.0,87549.0,1.01458064]
[1742860595059,0.0011694,87550.0,87549.0,0.78613764]
[1742860595370,0.2296094,87550.0,87549.0,0.78613764]
[1742860595951,0.0011694,87550.0,87549.0,1.01458064]
[1742860596166,0.0011694,87550.0,87549.0,0.78613764]
[1742860596365,0.0011694,87550.0,87549.0,1.01458064]
[1742860600264,0.2296094,87550.0,87549.0,0.78613764]
[1742860600449,0.0011694,87550.0,87549.0,0.78613764]
[1742860600651,0.2296094,87550.0,87549.0,0.78613764]
[1742860601067,0.0011694,87550.0,87549.0,0.78613764]
[1742860602205,0.2296094,87550.0,87549.0,0.78613764]
[1742860602410,0.0011694,87550.0,87549.0,0.78613764]
[1742860602616,0.2296094,87550.0,87549.0,0.78613764]
[1742860602985,0.2410314,87550.0,87549.0,0.78613764]
[1742860604892,0.2410314,87550.0,87549.0,0.65761764]
[1742860605103,0.2410314,87550.0,87549.0,0.78585764]
[1742860605275,0.47034998,87550.0,87549.0,0.54336]
[1742860605483,0.3731314,87550.0,87549.0,0.67156]
[1742860611015,0.3731314,87550.0,87549.0,0.1282]
[1742860612712,0.2903314,87550.0,87549.0,0.1282]
[1742860612904,0.0011694,87550.0,87549.0,0.24245764]
[1742860613842,0.0011694,87550.0,87549.0,0.47090064]
[1742860615623,0.0001694,87550.0,87549.0,0.47090064]
[1742860620652,0.0001694,87550.0,87549.0,1.01430064]
[1742860621073,0.0001694,87550.0,87549.0,1.41986349]
[1742860621301,0.0001694,87550.0,87549.0,1.46726349]
[1742860621694,0.0001694,87550.0,87549.0,1.50281321]
[1742860622342,0.0001694,87550.0,87549.0,1.50581321]
[1742860622550,0.0001694,87550.0,87549.0,1.50881321]
[1742860625242,0.0001694,87550.0,87549.0,1.92847162]
[1742860625455,0.0001694,87550.0,87549.0,1.8929219]
[1742860626059,0.0001694,87550.0,87549.0,1.73959905]
[1742860626260,0.0001694,87550.0,87549.0,1.75102105]
[1742860628383,0.0001694,87550.0,87549.0,1.7655619]
[1742860628766,0.0001694,87550.0,87549.0,1.88265797]
[1742860629628,8e-07,87554.0,87553.0,0.239854]
[1742860629835,8e-07,87554.0,87553.0,0.51640771]
[1742860630596,8e-07,87554.0,87553.0,0.52489021]
[1742860631115,8e-07,87554.0,87553.0,0.94454862]
[1742860631503,8e-07,87554.0,87553.0,1.07438862]
[1742860632283,8e-07,87554.0,87553.0,1.07238862]
[1742860632517,8e-07,87554.0,87553.0,1.04289255]
[1742860632709,8e-07,87554.0,87553.0,1.07834037]
[1742860633457,8e-07,87554.0,87553.0,0.99765255]
[1742860633588,8e-07,87554.0,87553.0,1.0121934]
[1742860637112,8e-07,87554.0,87553.0,1.11430966]
[1742860637669,8e-07,87554.0,87553.0,1.13685423]
[1742860642720,8e-07,87554.0,87553.0,1.03473797]
[1742860646341,8e-07,87554.0,87553.0,1.03507717]
[1742860646492,8e-07,87554.0,87553.0,1.07053531]
[1742860650242,8e-07,87554.0,87553.0,1.61373531]
[1742860654212,0.0001696,87572.0,87571.0,0.54292685]
[1742860654414,0.0002935,87572.0,87571.0,1.2158619]
[1742860654737,0.0002935,87572.0,87571.0,1.22700011]
[1742860655186,0.0002935,87572.0,87571.0,1.77020011]
[1742860655904,0.0002935,87572.0,87571.0,1.77120011]
[1742860656105,0.0002935,87572.0,87571.0,1.75665926]
[1742860657193,0.0002935,87572.0,87571.0,1.76165926]
[1742860657756,0.0002935,87572.0,87571.0,1.75665926]
[1742860658157,0.0002935,87572.0,87571.0,1.75765926]
[1742860658637,0.0002935,87572.0,87571.0,1.78102854]
[1742860659286,0.0476935,87572.0,87571.0,1.78102854]
[1742860659672,0.1252935,87572.0,87571.0,1.78094854]
[1742860660492,0.1252935,87572.0,87571.0,1.31864026]
[1742860660659,0.1252935,87572.0,87571.0,1.45757926]
[1742860663006,0.1252935,87572.0,87571.0,1.44616026]
[1742860663577,0.1252935,87572.0,87571.0,1.45757926]
[1742860664200,0.1252935,87572.0,87571.0,1.33005926]
[1742860664419,0.1252935,87572.0,87571.0,1.45749926]
[1742860666627,0.0002935,87572.0,87571.0,1.45749926]
[1742860673735,0.0002935,87572.0,87571.0,1.44608026]
[1742860674342,0.0002935,87572.0,87571.0,1.45749926]
[1742860680037,0.0002935,87572.0,87571.0,1.44608026]
[1742860680406,0.0002935,87572.0,87571.0,0.65945764]
[1742860680407,0.2286765,87572.0,87571.0,0.65945764]
[1742860680601,0.3653955,87572.0,87571.0,0.67224]
[1742860681276,0.3653955,87572.0,87571.0,0.67124]
[1742860681508,0.3539765,87572.0,87571.0,0.67124]
[1742860681967,0.3653955,87572.0,87571.0,0.67124]
[1742860682167,0.3653955,87572.0,87571.0,0.5442]
[1742860682396,0.3653955,87572.0,87571.0,0.67024]
[1742860688636,0.47387285,87572.0,87571.0,0.67024]
[1742860688983,0.3653955,87572.0,87571.0,0.67024]
[1742860698381,0.3653955,87572.0,87571.0,0.12704]
[1742860702242,0.2284,87566.0,87564.0,0.228402]
[1742860702450,0.2284,87566.0,87565.0,0.24101764]
[1742860703553,0.0002935,87572.0,87571.0,0.228386]
[1742860703728,0.0002935,87572.0,87571.0,0.35406264]
[1742860705806,0.0002935,87572.0,87571.0,0.35606264]
[1742860706584,0.2286765,87572.0,87571.0,0.11825764]
[1742860706930,0.0002935,87572.0,87571.0,0.24501764]
[1742860707603,0.0002935,87572.0,87571.0,0.47340364]
[1742860707732,0.0002935,87572.0,87571.0,0.47140364]
[1742860707941,0.0002935,87572.0,87571.0,0.24101764]
[1742860708143,0.0002935,87572.0,87571.0,0.24201764]
[1742860708350,0.0002935,87572.0,87571.0,0.24301764]
[1742860708798,0.0002935,87572.0,87571.0,0.47140364]
[1742860709096,0.0002935,87572.0,87571.0,0.24301764]
[1742860709596,0.2286765,87572.0,87571.0,0.24301764]
[1742860711214,0.2400955,87572.0,87571.0,0.24301764]
[1742860714364,0.0002935,87572.0,87571.0,0.24301764]
[1742860714791,0.2286765,87572.0,87571.0,0.24301764]
[1742860716669,0.0002935,87572.0,87571.0,0.24301764]
[1742860717740,0.2286765,87572.0,87571.0,0.24301764]
[1742860719023,0.0002935,87572.0,87571.0,0.24301764]
[1742860719621,0.2286765,87572.0,87571.0,0.24301764]
[1742860720072,0.2400955,87572.0,87571.0,0.24301764]
[1742860724289,0.0002935,87572.0,87571.0,0.24301764]
[1742860724931,0.0002935,87572.0,87571.0,0.47140364]
[1742860725133,0.0002935,87572.0,87571.0,0.24301764]
[1742860725487,0.2286765,87572.0,87571.0,0.24301764]
[1742860728131,0.2854955,87572.0,87571.0,0.24301764]
[1742860730042,0.39390325,87572.0,87571.0,0.24301764]
[1742860730525,0.2854955,87572.0,87571.0,0.24301764]
[1742860732245,0.0002935,87572.0,87571.0,0.78282264]
[1742860732458,5e-07,87572.0,87571.0,1.3444219]
[1742860732666,0.002,87589.0,87588.0,0.320158]
[1742860732871,0.002,87589.0,87588.0,0.56129564]
[1742860733297,0.002,87589.0,87588.0,0.48089564]
[1742860734027,0.002,87589.0,87588.0,0.9118147]
[1742860734439,0.002,87589.0,87588.0,0.93420152]
[1742860735082,0.002,87589.0,87588.0,0.93520152]
[1742860736289,0.002,87589.0,87588.0,0.93620152]
[1742860737113,0.002,87589.0,87588.0,1.25933461]
[1742860737320,0.002,87589.0,87588.0,1.30633461]
[1742860737753,0.002,87589.0,87588.0,1.24479376]
[1742860737955,0.002,87589.0,87588.0,1.10649676]
[1742860738158,0.002,87589.0,87588.0,1.24647376]
[1742860738379,0.002,87589.0,87588.0,1.25710508]
[1742860738560,0.002,87589.0,87588.0,1.24851284]
[1742860739885,0.002,87589.0,87588.0,1.26551442]
[1742860740519,0.002,87589.0,87588.0,1.26591442]
[1742860741143,0.0021696,87589.0,87588.0,1.26591442]
[1742860743071,0.0021696,87589.0,87588.0,1.28045527]
[1742860743462,0.00151842,87600.0,87599.0,0.539728]
[1742860743463,0.00141353,87600.0,87599.0,0.539728]
[1742860743603,0.00151728,87600.0,87599.0,0.74892649]
[1742860744250,2.8e-07,87600.0,87599.0,1.1685844]
[1742860744911,1e-06,87619.0,87618.0,0.228263]
[1742860745110,1e-06,87619.0,87618.0,1.74959155]
[1742860745353,1e-06,87619.0,87618.0,1.07703555]
[1742860745511,1e-06,87619.0,87618.0,1.21007555]
[1742860746932,1e-06,87619.0,87618.0,0.79141764]
[1742860747133,0.228261,87619.0,87618.0,0.65837764]
[1742860747337,1e-06,87619.0,87618.0,1.01976064]
[1742860747544,0.228261,87619.0,87618.0,0.65837764]
[1742860747762,0.228261,87619.0,87618.0,0.79157764]
[1742860747922,0.228261,87619.0,87618.0,0.79357764]
[1742860747923,0.239674,87619.0,87618.0,0.79357764]
[1742860748122,0.228261,87619.0,87618.0,0.79357764]
[1742860748322,0.228261,87619.0,87618.0,0.79057764]
[1742860748524,0.01131594,87614.0,87602.0,0.10208526]
[1742860748724,0.287017,87603.0,87602.0,0.10208526]
[1742860749340,0.29155061,87603.0,87602.0,0.10208526]
[1742860750015,0.28013561,87603.0,87602.0,0.10208526]
[1742860750276,0.29155061,87603.0,87602.0,0.10208526]
[1742860750648,0.228306,87602.0,87599.0,0.228311]
[1742860750885,0.228306,87602.0,87601.0,0.13428]
[1742860751010,0.228305,87602.0,87601.0,0.13428]
[1742860751221,0.23972,87602.0,87601.0,0.13428]
[1742860751446,0.011416,87594.0,87588.0,0.54304]
[1742860751626,0.011416,87594.0,87589.0,0.24857764]
[1742860751924,0.228328,87593.0,87589.0,0.24857764]
[1742860752163,0.228327,87594.0,87590.0,0.228336]
[1742860752317,0.228329,87593.0,87590.0,0.228336]
[1742860752527,0.011416,87593.0,87589.0,0.47691664]
[1742860752729,0.011416,87595.0,87589.0,0.11425764]
[1742860752937,0.011416,87594.0,87590.0,0.362696]
[1742860753144,0.011416,87594.0,87590.0,0.13436]
[1742860753503,0.011416,87595.0,87591.0,0.11425764]
[1742860753504,0.228331,87592.0,87591.0,0.11425764]
[1742860753704,0.316555,87589.0,87588.0,0.54314375]
[1742860756201,0.32096303,87589.0,87588.0,0.54314375]
[1742860756764,0.36826303,87589.0,87588.0,0.54314375]
[1742860761901,0.29146303,87589.0,87588.0,0.54314375]
[1742860764246,0.287055,87589.0,87588.0,0.54314375]
[1742860764930,0.25936041,87589.0,87588.0,0.54314375]
[1742860765140,0.239755,87589.0,87588.0,0.54314375]
[1742860766260,0.239755,87589.0,87588.0,0.54348275]
[1742860766888,0.239755,87589.0,87588.0,0.00044275]
[1742860771447,0.087716,87595.0,87588.0,0.00044275]
[1742860771448,0.02319886,87605.0,87588.0,0.00044275]
[1742860771649,1e-06,87619.0,87588.0,0.00044275]
[1742860771650,0.0001695,87614.0,87602.0,0.23972]
[1742860771853,0.0001695,87614.0,87602.0,0.36851849]